[Event "*** Titled Tuesday 3|2 Blitz"]
[Site "Chess.com"]
[Date "2017.06.06"]
[Round "1"]
[White "stefanodinn"]
[Black "gmcorrales"]
[Result "0-1"]
[WhiteElo "2276"]
[BlackElo "2544"]
[TimeControl "180+2"]
[EndTime "14:00:11 PDT"]
[Termination "gmcorrales won by checkmate"]

1. e4 {[%clk 0:02:51]} 1... c5 {[%clk 0:02:28.3]} 2. Nf3 {[%clk 0:02:46.5]} 2...
d6 {[%clk 0:02:27.3]} 3. d4 {[%clk 0:02:46.3]} 3... cxd4 {[%clk 0:02:28.2]} 4.
Nxd4 {[%clk 0:02:47.3]} 4... Nf6 {[%clk 0:02:29.8]} 5. Nc3 {[%clk 0:02:47.3]}
5... a6 {[%clk 0:02:31.2]} 6. f3 {[%clk 0:02:39]} 6... e6 {[%clk 0:02:30.6]} 7.
Be3 {[%clk 0:02:39]} 7... b5 {[%clk 0:02:31.3]} 8. Qd2 {[%clk 0:02:35.2]} 8...
Nbd7 {[%clk 0:02:31]} 9. g4 {[%clk 0:02:34]} 9... Nb6 {[%clk 0:02:30.6]} 10. g5
{[%clk 0:02:21.6]} 10... Nfd7 {[%clk 0:02:31.5]} 11. O-O-O {[%clk 0:02:18.9]}
11... b4 {[%clk 0:02:25.7]} 12. Nb1 {[%clk 0:02:03.8]} 12... d5 {[%clk
0:02:03.6]} 13. Nc6 {[%clk 0:01:52.4]} 13... Qc7 {[%clk 0:02:04.3]} 14. Nxb4
{[%clk 0:01:53]} 14... a5 {[%clk 0:02:05]} 15. Bxb6 {[%clk 0:01:25]} 15... Qxb6
{[%clk 0:02:01.2]} 16. Nd3 {[%clk 0:01:16.1]} 16... dxe4 {[%clk 0:02:02.1]} 17.
fxe4 {[%clk 0:01:15.8]} 17... Be7 {[%clk 0:02:03.4]} 18. Nc3 {[%clk 0:01:09.8]}
18... O-O {[%clk 0:02:03.2]} 19. h4 {[%clk 0:01:09.8]} 19... Bb7 {[%clk
0:01:59.9]} 20. Bg2 {[%clk 0:00:54.8]} 20... Nc5 {[%clk 0:02:00.8]} 21. Nxc5
{[%clk 0:00:48.9]} 21... Qxc5 {[%clk 0:02:02.7]} 22. Kb1 {[%clk 0:00:29.4]}
22... Rad8 {[%clk 0:01:59.7]} 23. Qe2 {[%clk 0:00:28.7]} 23... Bd6 {[%clk
0:01:56.1]} 24. Qb5 {[%clk 0:00:18]} 24... Bc6 {[%clk 0:01:39.5]} 25. Qxc5
{[%clk 0:00:18.4]} 25... Bxc5 {[%clk 0:01:41.4]} 26. Rxd8 {[%clk 0:00:10.7]}
26... Rxd8 {[%clk 0:01:41.8]} 27. Rd1 {[%clk 0:00:12.2]} 27... Rb8 {[%clk
0:01:37]} 28. b3 {[%clk 0:00:05.6]} 28... Kf8 {[%clk 0:01:36.7]} 29. h5 {[%clk
0:00:05.4]} 29... g6 {[%clk 0:01:36.3]} 30. hxg6 {[%clk 0:00:05.5]} 30... hxg6
{[%clk 0:01:37.1]} 31. Rd3 {[%clk 0:00:05.3]} 31... Ke7 {[%clk 0:01:37.4]} 32.
Bf3 {[%clk 0:00:06.2]} 32... Rh8 {[%clk 0:01:36]} 33. Kb2 {[%clk 0:00:06.4]}
33... Rh2 {[%clk 0:01:32.7]} 34. e5 {[%clk 0:00:06.5]} 34... Bxf3 {[%clk
0:01:29.2]} 35. Rxf3 {[%clk 0:00:07.4]} 35... Bd4 {[%clk 0:01:30.2]} 36. a3
{[%clk 0:00:06.8]} 36... Bxe5 {[%clk 0:01:30.3]} 37. b4 {[%clk 0:00:08.3]} 37...
axb4 {[%clk 0:01:30.7]} 38. axb4 {[%clk 0:00:09.8]} 38... Rg2 {[%clk 0:01:31.1]}
39. Kb3 {[%clk 0:00:09.7]} 39... Rxg5 {[%clk 0:01:30.3]} 40. Ne4 {[%clk
0:00:08.2]} 40... Rg4 {[%clk 0:01:31.5]} 41. Nc5 {[%clk 0:00:07.4]} 41... f5
{[%clk 0:01:29.4]} 42. b5 {[%clk 0:00:05.9]} 42... Bd6 {[%clk 0:01:27.7]} 43.
Nd3 {[%clk 0:00:05.3]} 43... e5 {[%clk 0:01:28.6]} 44. Rf1 {[%clk 0:00:04.2]}
44... e4 {[%clk 0:01:29.5]} 45. Nb2 {[%clk 0:00:03.2]} 45... f4 {[%clk
0:01:26.6]} 46. Nc4 {[%clk 0:00:04.1]} 46... e3 {[%clk 0:01:23]} 47. b6 {[%clk
0:00:03.3]} 47... e2 {[%clk 0:01:24.3]} 48. Re1 {[%clk 0:00:03.2]} 48... f3
{[%clk 0:01:25.6]} 49. Nd2 {[%clk 0:00:02.4]} 49... Rg3 {[%clk 0:01:23.6]} 50.
Kc4 {[%clk 0:00:02.4]} 50... Kd7 {[%clk 0:01:21.9]} 51. Nxf3 {[%clk 0:00:02.6]}
51... Rxf3 {[%clk 0:01:22.1]} 52. Rxe2 {[%clk 0:00:04]} 52... Kc6 {[%clk
0:01:22.2]} 53. Re6 {[%clk 0:00:05.5]} 53... g5 {[%clk 0:01:19.1]} 54. b7 {[%clk
0:00:05.7]} 54... Rf8 {[%clk 0:01:19.3]} 55. Rg6 {[%clk 0:00:03.9]} 55... Rb8
{[%clk 0:01:06.1]} 56. Rxg5 {[%clk 0:00:03.8]} 56... Rxb7 {[%clk 0:01:07.2]} 57.
Rg6 {[%clk 0:00:05.3]} 57... Rb4+ {[%clk 0:01:06.6]} 58. Kd3 {[%clk 0:00:06.4]}
58... Rh4 {[%clk 0:01:08.5]} 59. Rf6 {[%clk 0:00:06.6]} 59... Kd5 {[%clk
0:01:08]} 60. Rf5+ {[%clk 0:00:07.7]} 60... Be5 {[%clk 0:01:08.3]} 61. Rf3
{[%clk 0:00:08.6]} 61... Rc4 {[%clk 0:01:06.6]} 62. Rf5 {[%clk 0:00:07.9]} 62...
Rc3+ {[%clk 0:01:07.5]} 63. Kd2 {[%clk 0:00:09.1]} 63... Rh3 {[%clk 0:01:09.4]}
64. Rf2 {[%clk 0:00:08.8]} 64... Bc3+ {[%clk 0:01:07.9]} 65. Ke2 {[%clk
0:00:09]} 65... Ke4 {[%clk 0:01:08.8]} 66. Rg2 {[%clk 0:00:09.4]} 66... Be5
{[%clk 0:01:09.2]} 67. Rg4+ {[%clk 0:00:09.7]} 67... Bf4 {[%clk 0:01:10.1]} 68.
Rg2 {[%clk 0:00:10.7]} 68... Rc3 {[%clk 0:01:10.3]} 69. Kd1 {[%clk 0:00:11.8]}
69... Ra3 {[%clk 0:01:10.8]} 70. Ke2 {[%clk 0:00:12.4]} 70... Ra2 {[%clk
0:01:11.4]} 71. Kd1 {[%clk 0:00:13.2]} 71... Kf3 {[%clk 0:01:11.5]} 72. Rg8
{[%clk 0:00:03.7]} 72... Ra1# {[%clk 0:01:11.9]} 0-1

[Event "*** Titled Tuesday 3|2 Blitz"]
[Site "Chess.com"]
[Date "2017.06.06"]
[Round "1"]
[White "ChessQueen"]
[Black "Ind1anStar"]
[Result "1/2-1/2"]
[WhiteElo "2520"]
[BlackElo "2271"]
[TimeControl "180+2"]
[EndTime "14:00:31 PDT"]
[Termination "Game drawn - insufficient material"]

1. e4 {[%clk 0:03:02]} 1... e5 {[%clk 0:02:57.7]} 2. Nf3 {[%clk 0:03:02.4]} 2...
Nf6 {[%clk 0:02:58.1]} 3. Nxe5 {[%clk 0:03:00.1]} 3... d6 {[%clk 0:02:58.4]} 4.
Nf3 {[%clk 0:03:01.2]} 4... Nxe4 {[%clk 0:02:59.4]} 5. d4 {[%clk 0:03:02.4]}
5... d5 {[%clk 0:03:00.1]} 6. Bd3 {[%clk 0:03:03.4]} 6... Be7 {[%clk 0:03:01.1]}
7. O-O {[%clk 0:03:03.3]} 7... Nc6 {[%clk 0:03:01.8]} 8. c4 {[%clk 0:03:03.4]}
8... Nb4 {[%clk 0:03:02]} 9. cxd5 {[%clk 0:03:02.9]} 9... Nxd3 {[%clk
0:03:01.8]} 10. Qxd3 {[%clk 0:03:03.9]} 10... Qxd5 {[%clk 0:03:02.9]} 11. Nc3
{[%clk 0:03:04.9]} 11... Nxc3 {[%clk 0:03:03.2]} 12. bxc3 {[%clk 0:03:05.8]}
12... Bf5 {[%clk 0:02:58]} 13. Qe2 {[%clk 0:03:05.6]} 13... Qe4 {[%clk
0:02:50.1]} 14. Qb5+ {[%clk 0:03:00.3]} 14... Bd7 {[%clk 0:02:50.4]} 15. Qb3
{[%clk 0:02:57]} 15... Be6 {[%clk 0:02:47.2]} 16. c4 {[%clk 0:02:54.4]} 16...
O-O {[%clk 0:02:19.7]} 17. d5 {[%clk 0:02:47.5]} 17... Bf6 {[%clk 0:02:13]} 18.
Bb2 {[%clk 0:01:18.4]} 18... Bxb2 {[%clk 0:02:10.6]} 19. Qxb2 {[%clk 0:01:19.4]}
19... Bg4 {[%clk 0:02:08.4]} 20. Nd2 {[%clk 0:01:19.2]} 20... Qf4 {[%clk
0:02:07.8]} 21. Rfe1 {[%clk 0:01:15.9]} 21... b6 {[%clk 0:02:01.6]} 22. h3
{[%clk 0:01:12.8]} 22... Bf5 {[%clk 0:01:58.9]} 23. Qc3 {[%clk 0:01:12.4]} 23...
Rfe8 {[%clk 0:01:58.9]} 24. Re3 {[%clk 0:01:08.9]} 24... Rxe3 {[%clk 0:01:47.9]}
25. Qxe3 {[%clk 0:01:09.5]} 25... Qxe3 {[%clk 0:01:46.7]} 26. fxe3 {[%clk
0:01:11.1]} 26... Re8 {[%clk 0:01:47.4]} 27. Kf2 {[%clk 0:01:12.2]} 27... f6
{[%clk 0:01:46.7]} 28. Rc1 {[%clk 0:01:13]} 28... Be4 {[%clk 0:01:43.9]} 29.
Nxe4 {[%clk 0:01:10.3]} 29... Rxe4 {[%clk 0:01:44.3]} 30. Kf3 {[%clk 0:01:11.9]}
30... Re5 {[%clk 0:01:44.3]} 31. g4 {[%clk 0:01:09.2]} 31... Kf7 {[%clk
0:01:44.7]} 32. e4 {[%clk 0:01:09.5]} 32... Ke7 {[%clk 0:01:45.4]} 33. c5 {[%clk
0:01:10.9]} 33... Kd7 {[%clk 0:01:45.7]} 34. cxb6 {[%clk 0:01:07.3]} 34... axb6
{[%clk 0:01:45.8]} 35. Rc4 {[%clk 0:01:06.1]} 35... Re8 {[%clk 0:01:45.1]} 36.
Ra4 {[%clk 0:01:02.1]} 36... Kd6 {[%clk 0:01:43.8]} 37. Ra3 {[%clk 0:01:01.8]}
37... Kd7 {[%clk 0:01:40.7]} 38. Kf4 {[%clk 0:01:02]} 38... Kd6 {[%clk
0:01:40.7]} 39. h4 {[%clk 0:01:02.9]} 39... Rf8 {[%clk 0:01:33.6]} 40. Ra7
{[%clk 0:00:58]} 40... Re8 {[%clk 0:01:33.4]} 41. a4 {[%clk 0:00:57.7]} 41...
Re7 {[%clk 0:01:31.2]} 42. a5 {[%clk 0:00:57.6]} 42... bxa5 {[%clk 0:01:28.9]}
43. Ra6+ {[%clk 0:00:53.6]} 43... Kc5 {[%clk 0:01:26.7]} 44. Rxa5+ {[%clk
0:00:54.8]} 44... Kd4 {[%clk 0:01:27.5]} 45. Ra4+ {[%clk 0:00:55.6]} 45... Kd3
{[%clk 0:01:28.6]} 46. g5 {[%clk 0:00:45.7]} 46... fxg5+ {[%clk 0:01:27.7]} 47.
hxg5 {[%clk 0:00:47]} 47... Rf7+ {[%clk 0:01:23]} 48. Ke5 {[%clk 0:00:38]} 48...
Re7+ {[%clk 0:01:23.1]} 49. Kf5 {[%clk 0:00:39.3]} 49... g6+ {[%clk 0:01:20.6]}
50. Kf6 {[%clk 0:00:14.7]} 50... Rxe4 {[%clk 0:01:21]} 51. Ra7 {[%clk
0:00:15.7]} 51... Rd4 {[%clk 0:01:10.1]} 52. Rxc7 {[%clk 0:00:13.2]} 52... Rxd5
{[%clk 0:01:11.1]} 53. Rxh7 {[%clk 0:00:13.6]} 53... Rd6+ {[%clk 0:01:12.3]} 54.
Kg7 {[%clk 0:00:14.7]} 54... Ke4 {[%clk 0:01:12.7]} 55. Kh6 {[%clk 0:00:16.1]}
55... Kf5 {[%clk 0:01:12.3]} 56. Rf7+ {[%clk 0:00:17.1]} 56... Kg4 {[%clk
0:01:12.7]} 57. Rf6 {[%clk 0:00:16]} 57... Rd1 {[%clk 0:01:06.8]} 58. Ra6 {[%clk
0:00:07.3]} 58... Rc1 {[%clk 0:00:30.8]} 59. Ra4+ {[%clk 0:00:07.2]} 59... Kf5
{[%clk 0:00:31.2]} 60. Ra5+ {[%clk 0:00:08.7]} 60... Kg4 {[%clk 0:00:31.1]} 61.
Kxg6 {[%clk 0:00:09.9]} 61... Rc6+ {[%clk 0:00:31.6]} 62. Kf7 {[%clk 0:00:11.4]}
62... Kh5 {[%clk 0:00:29.8]} 63. g6+ {[%clk 0:00:11.9]} 63... Kh6 {[%clk
0:00:31.1]} 64. g7 {[%clk 0:00:12.2]} 64... Rc7+ {[%clk 0:00:32.1]} 65. Kf6
{[%clk 0:00:13.1]} 65... Rxg7 {[%clk 0:00:33.1]} 66. Rh5+ {[%clk 0:00:14.1]}
66... Kxh5 {[%clk 0:00:34]} 67. Kxg7 {[%clk 0:00:15.7]} 1/2-1/2

[Event "*** Titled Tuesday 3|2 Blitz"]
[Site "Chess.com"]
[Date "2017.06.06"]
[Round "1"]
[White "GMNeiksans"]
[Black "Er_is_geen_hoop_meer"]
[Result "1-0"]
[WhiteElo "2676"]
[BlackElo "2329"]
[TimeControl "180+2"]
[EndTime "14:00:35 PDT"]
[Termination "GMNeiksans won by resignation"]

1. e4 {[%clk 0:03:02]} 1... c5 {[%clk 0:02:01.5]} 2. Nf3 {[%clk 0:03:01]} 2...
e6 {[%clk 0:02:00.7]} 3. d4 {[%clk 0:03:01.2]} 3... cxd4 {[%clk 0:02:02.6]} 4.
Nxd4 {[%clk 0:03:01.8]} 4... Nc6 {[%clk 0:02:02.6]} 5. Nc3 {[%clk 0:03:01.4]}
5... Qc7 {[%clk 0:02:01.4]} 6. Be3 {[%clk 0:02:59.8]} 6... a6 {[%clk 0:02:00.9]}
7. Qf3 {[%clk 0:02:59.8]} 7... Ne5 {[%clk 0:01:58.7]} 8. Qg3 {[%clk 0:02:59.4]}
8... h5 {[%clk 0:01:59.2]} 9. f3 {[%clk 0:02:55.8]} 9... h4 {[%clk 0:01:56.6]}
10. Qf2 {[%clk 0:02:55.9]} 10... b5 {[%clk 0:01:56.5]} 11. Bd3 {[%clk
0:02:45.1]} 11... Bb7 {[%clk 0:01:57.1]} 12. O-O {[%clk 0:02:36.2]} 12... Be7
{[%clk 0:01:55.9]} 13. h3 {[%clk 0:02:28.9]} 13... Nf6 {[%clk 0:01:56.4]} 14. f4
{[%clk 0:02:28.1]} 14... Nxd3 {[%clk 0:01:57]} 15. cxd3 {[%clk 0:02:28.3]} 15...
d6 {[%clk 0:01:58.9]} 16. Rac1 {[%clk 0:02:28.2]} 16... Qb8 {[%clk 0:01:54.6]}
17. Nce2 {[%clk 0:02:26.2]} 17... Bd8 {[%clk 0:01:25.5]} 18. Nc6 {[%clk
0:02:22.1]} 18... Qc7 {[%clk 0:01:25.5]} 19. Nxd8 {[%clk 0:02:17.5]} 19... Qxd8
{[%clk 0:01:27.4]} 20. Bb6 {[%clk 0:02:15.7]} 20... Qb8 {[%clk 0:01:28.3]} 21.
Bc7 {[%clk 0:01:53]} 21... Qa7 {[%clk 0:01:25.7]} 22. Qxa7 {[%clk 0:01:52.7]}
22... Rxa7 {[%clk 0:01:27.6]} 23. Bxd6 {[%clk 0:01:53.3]} 23... Kd7 {[%clk
0:01:22.4]} 24. Be5 {[%clk 0:01:50.4]} 24... Rc8 {[%clk 0:01:22.2]} 25. Rxc8
{[%clk 0:01:47.4]} 25... Bxc8 {[%clk 0:01:24.1]} 26. Rc1 {[%clk 0:01:46.8]}
26... b4 {[%clk 0:01:24.4]} 27. Nd4 {[%clk 0:01:42.7]} 27... Ne8 {[%clk
0:01:13.8]} 28. Nf3 {[%clk 0:01:42.4]} 28... a5 {[%clk 0:01:08.2]} 29. Kf2
{[%clk 0:01:34.8]} 29... Ba6 {[%clk 0:01:08.4]} 30. Ke3 {[%clk 0:01:33.3]} 30...
Rb7 {[%clk 0:00:59.6]} 31. Nxh4 {[%clk 0:01:30.1]} 31... f6 {[%clk 0:01:00.7]}
32. Bd4 {[%clk 0:01:30.1]} 32... Nd6 {[%clk 0:01:02.6]} 33. Nf3 {[%clk
0:01:26.7]} 33... Nb5 {[%clk 0:01:01.4]} 34. Rc5 {[%clk 0:01:24.2]} 34... a4
{[%clk 0:00:59.4]} 35. g4 {[%clk 0:01:12.9]} 35... Rb8 {[%clk 0:00:54.8]} 36. h4
{[%clk 0:01:10.8]} 36... a3 {[%clk 0:00:49.3]} 37. b3 {[%clk 0:01:10.3]} 37...
Rd8 {[%clk 0:00:45.7]} 38. Rc4 {[%clk 0:01:02.1]} 38... Nc3 {[%clk 0:00:41.2]}
39. Rxb4 {[%clk 0:01:00.9]} 39... Nxa2 {[%clk 0:00:39.8]} 40. Ra4 {[%clk
0:01:00.4]} 40... Bb5 {[%clk 0:00:39.6]} 41. Rxa3 {[%clk 0:01:00.9]} 41... Nc1
{[%clk 0:00:41]} 42. Ne1 {[%clk 0:00:56.4]} 42... Ke8 {[%clk 0:00:40.8]} 43. e5
{[%clk 0:00:55.3]} 43... fxe5 {[%clk 0:00:41.1]} 44. fxe5 {[%clk 0:00:55.9]}
44... g6 {[%clk 0:00:39.4]} 45. b4 {[%clk 0:00:54.7]} 45... Kf7 {[%clk
0:00:39.5]} 46. Bb2 {[%clk 0:00:53]} 46... Rc8 {[%clk 0:00:38.6]} 47. Kd2 {[%clk
0:00:53.4]} 47... Nxd3 {[%clk 0:00:30.6]} 48. Nxd3 {[%clk 0:00:53.4]} 48... Rc4
{[%clk 0:00:32.5]} 49. Ra7+ {[%clk 0:00:46.4]} 49... Kg8 {[%clk 0:00:33.5]} 50.
Nf2 {[%clk 0:00:35.4]} 50... Rxb4 {[%clk 0:00:32.6]} 51. Bc3 {[%clk 0:00:36.3]}
51... Rf4 {[%clk 0:00:33.3]} 52. Ke3 {[%clk 0:00:36.3]} 52... Rc4 {[%clk
0:00:34.8]} 53. Bd4 {[%clk 0:00:36.7]} 53... Rc2 {[%clk 0:00:36.1]} 54. Ne4
{[%clk 0:00:35.8]} 54... Re2+ {[%clk 0:00:36.3]} 55. Kf3 {[%clk 0:00:36.5]}
55... Rc2 {[%clk 0:00:33.8]} 56. Kf4 {[%clk 0:00:32]} 56... Bd3 {[%clk
0:00:29.8]} 57. Ke3 {[%clk 0:00:27.2]} 57... Bb5 {[%clk 0:00:29.3]} 58. Bc5
{[%clk 0:00:26.2]} 58... Kh8 {[%clk 0:00:16.9]} 59. Nf6 {[%clk 0:00:21.8]} 59...
Rc3+ {[%clk 0:00:17.8]} 60. Kd2 {[%clk 0:00:17.6]} 60... Rd3+ {[%clk 0:00:18.5]}
61. Kc2 {[%clk 0:00:17.9]} 1-0

[Event "*** Titled Tuesday 3|2 Blitz"]
[Site "Chess.com"]
[Date "2017.06.06"]
[Round "1"]
[White "tigra"]
[Black "AdrianaNikolova"]
[Result "1/2-1/2"]
[WhiteElo "2598"]
[BlackElo "2322"]
[TimeControl "180+2"]
[EndTime "14:00:49 PDT"]
[Termination "Game drawn by repetition"]

1. e4 {[%clk 0:02:48.4]} 1... c5 {[%clk 0:03:00.1]} 2. Nf3 {[%clk 0:02:48.3]}
2... Nc6 {[%clk 0:02:58.5]} 3. d4 {[%clk 0:02:48.3]} 3... cxd4 {[%clk
0:03:00.4]} 4. Nxd4 {[%clk 0:02:50]} 4... Nf6 {[%clk 0:03:01.5]} 5. Nc3 {[%clk
0:02:50.6]} 5... d6 {[%clk 0:03:03]} 6. Bg5 {[%clk 0:02:51.1]} 6... e6 {[%clk
0:03:04.2]} 7. Qd2 {[%clk 0:02:51.8]} 7... a6 {[%clk 0:03:05.4]} 8. O-O-O {[%clk
0:02:52.2]} 8... h6 {[%clk 0:03:06.7]} 9. Bf4 {[%clk 0:02:50.4]} 9... Bd7 {[%clk
0:02:25]} 10. Nxc6 {[%clk 0:02:44.5]} 10... Bxc6 {[%clk 0:02:26.9]} 11. Bxd6
{[%clk 0:02:41.9]} 11... Bxd6 {[%clk 0:02:22.3]} 12. Qxd6 {[%clk 0:02:42.1]}
12... Nxe4 {[%clk 0:01:44.4]} 13. Nxe4 {[%clk 0:02:36.5]} 13... Bxe4 {[%clk
0:01:46.3]} 14. Qxd8+ {[%clk 0:02:21.2]} 14... Rxd8 {[%clk 0:01:48.2]} 15. f3
{[%clk 0:02:22.4]} 15... Rxd1+ {[%clk 0:01:38.6]} 16. Kxd1 {[%clk 0:02:24.3]}
16... Bc6 {[%clk 0:01:24.9]} 17. Kd2 {[%clk 0:02:20.9]} 17... Ke7 {[%clk
0:01:26.2]} 18. Bd3 {[%clk 0:02:21.4]} 18... Rd8 {[%clk 0:01:28.1]} 19. b3
{[%clk 0:02:21.4]} 19... f5 {[%clk 0:01:26.1]} 20. a4 {[%clk 0:02:17]} 20... e5
{[%clk 0:01:22.1]} 21. Ke3 {[%clk 0:02:14.8]} 21... Kf6 {[%clk 0:01:11.1]} 22.
a5 {[%clk 0:02:15.5]} 22... g5 {[%clk 0:01:11.2]} 23. b4 {[%clk 0:02:12.5]}
23... e4 {[%clk 0:00:59.6]} 24. fxe4 {[%clk 0:02:10.5]} 24... fxe4 {[%clk
0:00:59.9]} 25. Rf1+ {[%clk 0:02:05.6]} 25... Ke5 {[%clk 0:00:58.4]} 26. Be2
{[%clk 0:02:06.9]} 26... Ba4 {[%clk 0:00:35.5]} 27. c3 {[%clk 0:02:02.9]} 27...
Rc8 {[%clk 0:00:35.2]} 28. c4 {[%clk 0:02:03.4]} 28... Bb3 {[%clk 0:00:29.9]}
29. Rc1 {[%clk 0:02:02.3]} 29... Rd8 {[%clk 0:00:29.7]} 30. b5 {[%clk
0:01:56.7]} 30... Rd4 {[%clk 0:00:21.9]} 31. bxa6 {[%clk 0:01:18.5]} 31... bxa6
{[%clk 0:00:23.8]} 32. Rb1 {[%clk 0:01:18.2]} 32... Bxc4 {[%clk 0:00:10.2]} 33.
Rb4 {[%clk 0:01:18.2]} 33... Kd5 {[%clk 0:00:11.6]} 34. Rb6 {[%clk 0:00:51]}
34... Kc5 {[%clk 0:00:07.6]} 35. Bxc4 {[%clk 0:00:20.2]} 35... Rxc4 {[%clk
0:00:09.5]} 36. Rxa6 {[%clk 0:00:22.1]} 36... Kd5 {[%clk 0:00:10.5]} 37. Rxh6
{[%clk 0:00:21.7]} 37... Rc3+ {[%clk 0:00:11.7]} 38. Kf2 {[%clk 0:00:22.4]}
38... Ra3 {[%clk 0:00:13.6]} 39. a6 {[%clk 0:00:22.9]} 39... e3+ {[%clk
0:00:14.1]} 40. Kg3 {[%clk 0:00:22.3]} 40... Ke4 {[%clk 0:00:13.6]} 41. Re6+
{[%clk 0:00:22.5]} 41... Kd3 {[%clk 0:00:14.4]} 42. Kf3 {[%clk 0:00:21]} 42...
Kd2 {[%clk 0:00:15.1]} 43. Rd6+ {[%clk 0:00:21.8]} 43... Ke1 {[%clk 0:00:09.4]}
44. g3 {[%clk 0:00:20.2]} 44... e2+ {[%clk 0:00:10.6]} 45. Kg2 {[%clk
0:00:21.1]} 45... Ra2 {[%clk 0:00:11.3]} 46. h4 {[%clk 0:00:20.1]} 46... Rd2
{[%clk 0:00:11.5]} 47. a7 {[%clk 0:00:18.4]} 47... Ra2 {[%clk 0:00:11.1]} 48.
Rd7 {[%clk 0:00:18.6]} 48... gxh4 {[%clk 0:00:13]} 49. gxh4 {[%clk 0:00:19.3]}
49... Ra5 {[%clk 0:00:13.3]} 50. h5 {[%clk 0:00:19.6]} 50... Rg5+ {[%clk
0:00:14.2]} 51. Kf3 {[%clk 0:00:20.7]} 51... Kf1 {[%clk 0:00:15.2]} 52. a8=Q
{[%clk 0:00:19.7]} 52... e1=Q {[%clk 0:00:16.3]} 53. Qa6+ {[%clk 0:00:19]} 53...
Kg1 {[%clk 0:00:16.9]} 54. Qb6+ {[%clk 0:00:12.2]} 54... Kh1 {[%clk 0:00:17.5]}
55. Qc6 {[%clk 0:00:09.7]} 55... Kg1 {[%clk 0:00:12]} 56. Qb6+ {[%clk
0:00:08.3]} 56... Kh1 {[%clk 0:00:12.8]} 57. Qc6 {[%clk 0:00:09.2]} 57... Kg1
{[%clk 0:00:12.5]} 58. Qb6+ {[%clk 0:00:06.4]} 58... Kh1 {[%clk 0:00:13]} 59.
Qc6 {[%clk 0:00:07.2]} 59... Kg1 {[%clk 0:00:12.2]} 60. Qb6+ {[%clk 0:00:07.2]}
60... Kh1 {[%clk 0:00:13.1]} 61. Qb7 {[%clk 0:00:08]} 61... Kg1 {[%clk
0:00:12.3]} 62. Qb6+ {[%clk 0:00:08.4]} 1/2-1/2